bitfinex/quotes_ETHUSD_20250924
["timestamp","ask_amount","ask_price","bid_price","bid_amount"]
[1758712663742,2.8678176,4201.9,4201.8,0.004]
[1758712664374,2.35735832,4201.9,4201.8,0.004]
[1758712664535,2.8678176,4201.9,4201.8,0.004]
[1758712664735,2.35735832,4201.9,4201.8,0.004]
[1758712664962,2.8678176,4201.9,4201.8,0.004]
[1758712665149,2.35735832,4201.9,4201.8,0.004]
[1758712665355,2.8678176,4201.9,4201.8,0.004]
[1758712665573,2.35735832,4201.9,4201.8,0.004]
[1758712665752,2.8678176,4201.9,4201.8,0.004]
[1758712665951,2.35735832,4201.9,4201.8,0.004]
[1758712666157,2.8678176,4201.9,4201.8,0.004]
[1758712666341,2.35735832,4201.9,4201.8,0.004]
[1758712666561,2.8678176,4201.9,4201.8,0.004]
[1758712666871,2.35735832,4201.9,4201.8,0.004]
[1758712667172,3.5703176,4201.9,4201.8,0.004]
[1758712667475,3.05985832,4201.9,4201.8,0.004]
[1758712667903,5.92795598,4201.9,4201.8,0.004]
[1758712668469,5.92795598,4201.9,4201.4,0.004]
[1758712668470,0.792,4201.7,4201.4,0.004]
[1758712668672,0.792,4201.5,4201.4,0.004]
[1758712668881,1.52547112,4201.5,4201.4,0.004]
[1758712669110,2.22797112,4201.5,4201.4,0.004]
[1758712669279,1.71751184,4201.5,4201.4,0.004]
[1758712669479,2.22797112,4201.5,4201.4,0.004]
[1758712669820,5.97374096,4201.5,4201.4,0.004]
[1758712671115,6.10472011,4201.5,4201.4,0.004]
[1758712671274,6.61517939,4201.5,4201.4,0.004]
[1758712671971,5.91267939,4201.5,4201.4,0.004]
[1758712672169,5.40222011,4201.5,4201.4,0.004]
[1758712672364,5.27124096,4201.5,4201.4,0.004]
[1758712672610,0.22301184,4201.5,4201.4,0.004]
[1758712672910,0.22301184,4201.5,4201.4,0.60070158]
[1758712673201,0.001,4202.1,4201.4,0.60070158]
[1758712673202,0.22301184,4202.0,4201.4,15.10070158]
[1758712673372,0.22301184,4201.9,4201.4,14.504]
[1758712673569,0.22301184,4201.8,4201.5,0.5729]
[1758712673849,0.001,4202.1,4201.6,0.59670045]
[1758712673850,0.22301184,4201.7,4201.6,0.59670045]
[1758712673992,0.22301184,4202.0,4201.6,0.5729]
[1758712674195,0.22301184,4201.9,4201.7,14.7378]
[1758712674406,0.22301184,4201.8,4201.7,14.7378]
[1758712675192,0.22301184,4201.8,4201.7,14.5]
[1758712675918,1.01501184,4201.8,4201.7,14.5]
[1758712676621,1.71751184,4201.8,4201.7,14.5]
[1758712676924,1.95350687,4201.8,4201.7,14.5]
[1758712677441,1.95270687,4201.8,4201.7,14.5]
[1758712678518,0.792,4201.7,4201.4,0.004]
[1758712678726,1.4945,4201.7,4201.4,0.004]
[1758712679047,0.792,4201.5,4201.4,0.004]
[1758712679832,1.02919335,4201.5,4201.4,0.004]
[1758712681244,1.71549335,4201.5,4201.4,0.004]
[1758712682249,0.64143843,4201.6,4201.4,0.004]
[1758712682414,0.001,4203.0,4201.4,0.57]
[1758712682415,1.35824865,4202.1,4201.4,0.57]
[1758712682615,0.64243843,4202.1,4201.5,0.2309]
[1758712683019,0.64243843,4202.1,4201.6,14.8351]
[1758712683353,0.64243843,4202.1,4201.7,0.566]
[1758712683553,0.001,4202.1,4201.4,0.004]
[1758712683735,0.001,4202.1,4201.8,0.2309]
[1758712684053,0.001,4202.1,4201.9,14.7309]
[1758712684461,0.001,4202.1,4201.9,14.5]
[1758712684755,0.793,4202.1,4201.9,14.5]
[1758712684957,0.19448977,4202.0,4201.9,14.5]
[1758712685945,0.8359282,4202.0,4201.4,0.004]
[1758712686260,0.792,4201.9,4201.4,0.004]
[1758712686929,1.4783,4201.9,4201.4,0.004]
[1758712687264,1.76086875,4201.9,4201.4,0.004]
[1758712688350,0.792,4201.7,4201.4,0.004]
[1758712689573,0.22294994,4201.6,4201.4,0.004]
[1758712689756,0.22294994,4201.5,4201.4,0.004]
[1758712689956,5.85314765,4201.5,4201.4,0.004]
[1758712690125,6.82360422,4201.5,4201.4,0.004]
[1758712690325,7.03358387,4201.5,4201.3,0.004]
[1758712690525,1.41970922,4201.4,4201.3,0.004]
[1758712692245,0.73340922,4201.4,4201.3,0.004]
[1758712692437,0.22294994,4201.4,4201.3,0.5739]
[1758712696371,0.22294994,4201.4,4201.3,0.2388]
[1758712698255,0.2228926,4201.4,4201.3,0.2388]
[1758712700156,0.2228926,4201.4,4201.3,0.004]
[1758712700398,0.9219926,4201.4,4201.3,0.004]
[1758712700868,0.2228926,4201.4,4201.3,0.004]
[1758712703956,1.14129165,4201.4,4201.3,0.004]
[1758712704358,1.14049165,4201.4,4201.3,0.004]
[1758712705394,0.9211926,4201.4,4201.3,0.004]
[1758712706595,0.001,4202.1,4201.3,17.73028637]
[1758712706892,0.001,4202.7,4201.4,0.5699]
[1758712707192,0.85141808,4203.6,4201.4,0.5699]
[1758712707193,0.02,4203.9,4202.5,3.0]
[1758712707398,0.02,4203.9,4203.0,17.46768422]
[1758712707898,0.02,4203.9,4203.8,14.5]
[1758712708391,0.02,4203.9,4203.8,15.0649]
[1758712710386,0.02,4203.9,4203.8,14.5]
[1758712710698,0.02,4203.9,4203.8,14.7348]
[1758712711402,0.021,4203.9,4203.8,14.7348]
[1758712715007,0.021,4203.9,4203.8,14.5]
[1758712715305,0.021,4203.9,4203.8,15.0649]
[1758712715688,0.021,4203.9,4203.8,14.7348]
[1758712715887,0.021,4203.9,4203.8,14.5]
[1758712717187,0.021,4203.9,4203.8,14.7348]
[1758712717592,0.021,4203.9,4203.8,14.5]
[1758712717787,0.021,4203.9,4203.8,14.7348]
[1758712719730,0.021,4203.9,4203.8,14.5]
[1758712720317,0.7201,4203.9,4203.8,14.5]
[1758712721954,0.021,4203.9,4203.8,14.5]
[1758712722330,0.7326,4203.9,4203.8,14.5]
[1758712722855,0.021,4203.9,4203.8,14.5]
[1758712723223,0.7326,4203.9,4203.8,14.5]
[1758712725873,0.021,4203.9,4203.8,14.5]
[1758712726075,0.021,4203.9,4203.8,14.7265]
[1758712726231,0.021,4203.9,4203.8,14.5]
[1758712727266,0.7326,4203.9,4203.8,14.5]
[1758712727726,0.95379298,4203.9,4203.8,14.5]
[1758712731591,0.95299298,4203.9,4203.8,14.5]
[1758712732466,0.24139298,4203.9,4203.8,14.5]
[1758712732672,0.7318,4203.9,4203.8,14.5]
[1758712732877,0.70459298,4203.9,4203.8,14.5]
[1758712733081,0.4834,4203.9,4203.8,14.5]
[1758712733254,0.70459298,4203.9,4203.8,14.5]
[1758712733587,0.24139298,4203.9,4203.8,14.5]
[1758712733756,0.0202,4203.9,4203.8,14.5]
[1758712734170,0.24139298,4203.9,4203.8,14.5]
[1758712734370,0.0202,4203.9,4203.8,14.5]
[1758712734565,0.24224255,4203.9,4203.8,14.5]
[1758712734768,1.08210681,4203.9,4203.8,14.5]
[1758712736865,1.59100784,4203.9,4203.8,14.5]
[1758712738308,1.59171591,4203.9,4203.8,14.5]
[1758712738668,1.59171586,4203.9,4203.8,14.5]
[1758712740097,2.38371586,4203.9,4203.8,14.5]
[1758712740693,2.38371586,4203.9,4203.0,0.004]
[1758712740694,3.9104,4203.8,4203.0,0.004]
[1758712740889,0.64171621,4203.2,4203.0,0.004]
[1758712741198,1.01475057,4203.1,4203.0,0.004]
[1758712741399,0.792,4203.1,4203.0,0.004]
[1758712741598,1.01476036,4203.1,4203.0,0.004]
[1758712741826,1.70476036,4203.1,4203.0,0.004]
[1758712742201,1.99029812,4203.1,4203.0,0.004]
[1758712742701,2.63201433,4203.1,4203.0,0.004]
[1758712742914,6.35482077,4203.1,4203.0,0.004]
[1758712743114,5.49919915,4203.1,4203.0,0.004]
[1758712744187,6.35373864,4203.1,4203.0,0.004]
[1758712745413,5.49919915,4203.1,4203.0,0.004]
[1758712746799,6.78206308,4203.1,4203.0,0.004]
[1758712747129,0.9104,4203.0,4202.5,0.004]
[1758712747309,1.6457405,4202.8,4202.5,0.004]
[1758712747490,0.792,4202.6,4202.5,0.004]
[1758712747687,1.01476036,4202.6,4202.5,0.004]
[1758712748033,1.70476036,4202.6,4202.5,0.004]
[1758712749159,2.3447135,4202.6,4202.5,0.004]
[1758712749434,5.741625,4202.6,4202.5,0.004]
[1758712750091,5.10167186,4202.6,4202.5,0.004]
[1758712750293,5.61057289,4202.6,4202.5,0.004]
[1758712750838,0.792,4202.4,4202.1,0.004]
[1758712751002,0.792,4202.2,4202.1,0.004]
[1758712751333,4.89207445,4202.2,4202.1,0.004]
[1758712751535,1.89207445,4202.2,4202.1,0.004]
[1758712751691,2.56357445,4202.2,4202.1,0.004]
[1758712753522,4.92394612,4202.2,4202.1,0.004]
[1758712754392,5.29717028,4202.2,4202.1,0.004]
[1758712754590,5.80607131,4202.2,4202.1,0.004]
[1758712755027,5.43284715,4202.2,4202.1,0.004]
[1758712755422,4.92394612,4202.2,4202.1,0.004]
[1758712758429,5.2971601,4202.2,4202.1,0.004]
[1758712758625,4.92394612,4202.2,4202.1,0.004]
[1758712758830,4.92314612,4202.2,4202.1,0.004]
[1758712763300,5.56277445,4202.2,4202.1,0.004]
[1758712765347,1.92314612,4202.2,4202.1,0.004]
[1758712765645,5.29636485,4202.2,4202.1,0.004]
[1758712765950,5.80526588,4202.2,4202.1,0.004]
[1758712767039,6.65846209,4202.2,4201.7,14.5]
[1758712767202,0.63996397,4201.9,4201.3,0.23]
[1758712767399,0.792,4201.7,4201.3,0.23]
[1758712767605,0.792,4201.5,4201.3,0.004]
[1758712767800,1.01476036,4201.4,4201.3,0.004]
[1758712768537,1.01476036,4201.4,4201.3,0.23]
[1758712771031,1.9026229,4201.4,4201.3,0.004]
[1758712771211,1.74002393,4201.4,4201.3,0.23]
[1758712771417,2.16529078,4201.4,4201.3,0.5601]
[1758712771617,1.65638975,4201.4,4201.3,0.5601]
[1758712771946,2.16529078,4201.4,4201.3,0.5601]
[1758712772146,1.52366139,4201.4,4201.3,0.5601]
[1758712773042,2.16560751,4201.4,4201.3,0.5601]
[1758712773550,1.52366139,4201.4,4201.3,0.23]
[1758712774822,1.52366139,4201.4,4201.3,14.73]
[1758712776866,1.52366139,4201.4,4201.3,14.504]
[1758712777362,1.52366139,4201.4,4201.3,14.73]
[1758712777753,1.52366139,4201.4,4201.3,0.23]
[1758712778150,2.3768576,4201.4,4201.3,0.23]
[1758712778458,2.3768576,4201.4,4201.3,14.73]
[1758712781464,2.3768576,4201.4,4201.3,0.23]
[1758712781961,2.3768576,4201.4,4201.3,14.73]
[1758712782174,2.3768576,4201.4,4201.3,14.5]
[1758712784868,2.3768576,4201.4,4201.2,0.004]
[1758712784869,0.9104,4201.3,4201.2,0.004]
[1758712785040,1.64206139,4201.3,4201.2,0.004]
[1758712785245,1.64206139,4201.3,4201.2,14.504]
[1758712785657,1.87286139,4201.3,4201.2,14.504]
[1758712785974,1.87206139,4201.3,4201.2,14.504]
[1758712786139,4.04281336,4201.3,4201.2,14.504]
[1758712786334,4.04281336,4201.3,4201.2,0.004]
[1758712789483,6.18961715,4201.3,4201.1,0.024]
[1758712789686,2.38104169,4201.2,4201.1,0.024]
[1758712790154,2.24376139,4201.2,4201.1,0.024]
[1758712790674,6.52437189,4201.2,4201.1,0.024]
[1758712791239,5.24376139,4201.2,4201.1,0.024]
[1758712797101,0.792,4201.0,4200.9,0.004]
[1758712797309,1.52366139,4201.0,4200.9,0.004]
[1758712797621,2.24376139,4201.0,4200.9,0.004]
[1758712797920,5.22919164,4201.0,4200.9,0.004]
[1758712798219,7.22990214,4201.0,4200.9,0.004]
[1758712801115,3.31647233,4200.6,4200.5,0.004]
[1758712801289,4.60147915,4200.6,4200.5,0.004]
[1758712801489,3.792,4200.5,4200.4,0.004]
[1758712801713,4.52366139,4200.5,4200.4,0.004]
[1758712801918,10.84841246,4200.5,4200.4,0.004]
[1758712802229,0.9104,4200.4,4200.3,0.004]
[1758712802523,1.64206139,4200.4,4200.3,0.004]
[1758712802684,2.35016139,4200.4,4200.3,0.004]
[1758712803446,0.792,4200.3,4200.1,0.024]
[1758712803662,10.14031246,4200.2,4200.1,0.024]
[1758712803811,12.56919954,4200.2,4200.1,0.024]
[1758712804647,14.3270001,4200.2,4200.1,0.024]
[1758712805143,3.9104,4200.1,4199.2,14.7475]
[1758712805318,0.792,4199.7,4199.2,14.7475]
[1758712805639,1.01476036,4199.7,4199.2,14.7475]
[1758712805820,1.62338193,4199.7,4199.2,14.7475]
[1758712806159,4.86848193,4199.7,4199.2,14.7475]
[1758712806358,5.33148193,4199.7,4199.2,0.2475]
[1758712806642,6.21381721,4199.7,4199.1,0.024]
[1758712807048,7.06827155,4199.7,4199.1,0.024]
[1758712807227,6.21381721,4199.7,4199.1,0.024]
[1758712808449,7.06827155,4199.7,4199.1,0.024]
[1758712808642,6.6948373,4199.7,4199.1,0.024]
[1758712809849,0.792,4199.3,4199.1,0.024]
[1758712810155,1.01476036,4199.2,4199.1,0.024]
[1758712810718,4.72286036,4199.2,4199.1,0.024]
[1758712810918,5.87177087,4199.2,4199.1,0.024]
[1758712811468,5.23176139,4199.2,4199.1,0.024]
[1758712811666,7.45629892,4199.2,4199.1,0.024]
[1758712811827,3.9104,4199.1,4198.7,0.004]
[1758712812033,3.792,4198.7,4198.1,0.02]
[1758712812356,0.792,4198.2,4198.1,0.02]
[1758712812557,1.01476036,4198.2,4198.1,0.02]
[1758712812731,5.76727294,4198.2,4198.1,0.02]
[1758712812932,5.97444077,4198.2,4198.1,0.02]
[1758712813137,5.97444077,4198.2,4198.1,0.2557]
[1758712813468,5.97444077,4198.2,4198.1,0.02]
[1758712814652,6.20314077,4198.2,4198.1,0.02]
[1758712814874,6.64894077,4198.2,4198.1,0.02]
[1758712815350,5.97444077,4198.2,4198.1,0.02]
[1758712815904,5.60087397,4198.2,4198.1,0.02]
[1758712816453,4.52286139,4198.2,4198.1,0.02]
[1758712816685,4.01396036,4198.2,4198.1,0.5858]
[1758712817960,3.22276036,4198.2,4198.1,0.5858]
[1758712818508,0.22276036,4198.2,4198.1,0.5858]
[1758712818885,0.34116036,4198.2,4198.1,0.5858]
[1758712819064,0.34116036,4198.2,4198.1,15.0858]
[1758712819264,0.34116036,4198.2,4198.1,14.7557]
[1758712819479,0.34116036,4198.2,4198.1,15.0858]
[1758712820892,0.34116036,4198.2,4198.1,14.7557]
[1758712821395,1.13316036,4198.2,4198.1,14.52]
[1758712821903,1.13316036,4198.2,4198.1,14.7557]
[1758712825467,1.13316036,4198.2,4198.1,0.2557]
[1758712826184,1.13316036,4198.2,4198.1,14.7557]
[1758712826686,1.13316036,4198.2,4198.1,14.52]
[1758712827062,1.13316036,4198.2,4198.1,14.7557]
[1758712827265,0.34116036,4198.2,4198.1,14.7557]
[1758712827600,0.22276036,4198.2,4198.1,15.0858]
[1758712827799,0.34116036,4198.2,4198.1,15.0858]
[1758712827978,0.34116036,4198.2,4198.1,15.0898]
[1758712828580,0.34216036,4198.2,4198.1,15.0898]
[1758712830698,0.22376036,4198.2,4198.1,0.5898]
[1758712831000,0.22376036,4198.2,4198.1,0.73202029]
[1758712831201,0.22376036,4198.2,4198.1,15.23202029]
[1758712831502,0.22376036,4198.2,4198.1,15.2082]
[1758712832263,0.001,4198.7,4198.1,15.2082]
[1758712832491,0.001,4198.7,4198.6,5.73505107]
[1758712833012,0.001,4198.7,4198.6,20.80085107]
[1758712833677,0.001,4198.7,4198.6,15.1842]
[1758712833986,0.001,4198.7,4198.6,20.80085107]
[1758712834767,0.001,4198.7,4198.6,20.47075107]
[1758712835391,0.001,4198.7,4198.6,20.80085107]
[1758712837306,0.001,4198.7,4198.6,20.68245107]
[1758712837617,0.001,4198.7,4198.6,20.80085107]
[1758712840212,0.0002,4198.7,4198.6,20.80085107]
[1758712841713,0.0002,4198.7,4198.6,15.1842]
[1758712841922,0.0002,4198.7,4198.6,20.80085107]
[1758712843422,0.2312,4200.0,4198.6,26.42560214]
[1758712843581,0.1184,4200.2,4199.9,5.61665107]
[1758712843783,0.1184,4200.2,4200.0,0.02380952]
[1758712843980,0.7779,4200.2,4200.1,14.5]
[1758712844382,1.00003406,4200.2,4200.1,14.5]
[1758712846144,0.34053406,4200.2,4200.1,14.5]
[1758712846342,0.1184,4200.2,4200.1,14.5]
[1758712846541,0.7779,4200.2,4200.1,14.5]
[1758712846746,1.00003406,4200.2,4200.1,14.5]
[1758712848553,1.00103406,4200.2,4200.1,14.5]
[1758712848718,1.12415747,4200.2,4200.1,14.5]
[1758712850666,1.91615747,4200.2,4200.1,14.5]
[1758712851177,4.91615747,4200.2,4200.1,14.5]
[1758712851318,5.42688987,4200.2,4200.1,14.5]
[1758712851741,5.42688987,4200.2,4198.9,0.1184]
[1758712851947,0.1184,4199.6,4198.9,0.1184]
[1758712852163,0.88163406,4199.5,4198.9,0.1184]
[1758712852331,0.88163406,4199.5,4199.4,14.5]
[1758712853168,1.67363406,4199.5,4199.4,14.5]
[1758712853538,2.3897792,4199.5,4199.4,14.5]
[1758712853768,2.64059712,4199.5,4199.4,14.5]
[1758712855573,2.64059712,4199.5,4198.3,0.1184]
[1758712855821,0.22213406,4199.4,4198.3,0.1184]
[1758712855962,0.792,4199.2,4197.9,0.3301]
[1758712856267,0.1184,4198.5,4198.4,14.5]
[1758712856471,0.7779,4198.5,4198.4,14.5]
[1758712856671,1.00003406,4198.5,4198.4,14.5]
[1758712857237,1.17166172,4198.5,4198.4,14.5]
[1758712857437,1.96366172,4198.5,4198.4,14.5]
[1758712860575,0.792,4198.4,4197.6,0.2441]
[1758712860740,0.22213406,4198.3,4197.6,0.2441]
[1758712860938,0.22213406,4198.2,4197.6,0.2441]
[1758712861647,0.22213406,4198.2,4198.1,14.524]
[1758712862561,0.22213406,4198.2,4198.1,14.7641]
[1758712863289,0.22213406,4198.4,4198.1,14.7641]
[1758712863466,0.22213406,4198.3,4198.1,14.524]
[1758712863777,0.22213406,4198.2,4198.1,14.524]
[1758712863982,0.22213406,4198.4,4198.1,14.524]
[1758712864184,0.22213406,4198.3,4198.1,14.524]
[1758712864368,0.22213406,4198.2,4198.1,14.524]
[1758712864583,0.22213406,4198.4,4198.1,14.524]
[1758712864750,0.22213406,4198.3,4198.1,14.524]
[1758712865078,0.22213406,4198.2,4198.1,14.524]
[1758712865283,0.6742,4198.2,4198.1,14.524]
[1758712865778,0.22213406,4198.2,4198.1,14.524]
[1758712865981,0.22213406,4198.4,4198.1,14.524]
[1758712866178,0.46233406,4198.3,4198.1,14.524]
[1758712866381,0.22213406,4198.2,4198.1,14.524]
[1758712867352,0.71629219,4198.5,4198.1,14.524]
[1758712867553,0.6742,4198.4,4198.1,14.524]
[1758712867845,0.6742,4198.3,4198.1,14.524]
[1758712868051,0.6742,4198.2,4198.1,0.024]
[1758712868251,1.4662,4198.2,4198.1,0.024]
[1758712868650,2.1070234,4198.2,4198.1,0.024]
[1758712868881,3.42397207,4198.2,4198.1,0.024]
[1758712869081,3.93663079,4198.2,4198.1,0.024]
[1758712869292,3.29580739,4198.2,4198.1,0.024]
[1758712869590,3.93663079,4198.2,4198.1,0.024]
[1758712870201,3.29580739,4198.2,4198.1,0.024]
[1758712870408,6.29580739,4198.2,4198.1,0.024]
[1758712871435,6.93663079,4198.2,4198.1,0.024]
[1758712871948,3.9104,4198.1,4197.6,0.004]
[1758712872228,0.792,4197.7,4197.6,0.004]
[1758712872418,0.792,4197.8,4197.6,0.004]
[1758712872620,0.6826,4197.7,4197.6,0.004]
[1758712873392,1.4746,4197.7,4197.6,0.004]
[1758712873629,2.62160863,4197.7,4197.6,0.004]
[1758712875931,2.99523649,4197.7,4197.6,0.004]
[1758712876328,2.62160863,4197.7,4197.6,0.004]
[1758712877457,1.93900863,4197.7,4197.6,0.004]
[1758712877953,2.62160863,4197.7,4197.6,0.004]
[1758712879231,2.84363508,4197.7,4197.6,0.004]
[1758712880466,3.48331811,4197.7,4197.6,0.004]
[1758712881331,1.36903508,4197.7,4197.6,0.004]
[1758712881537,1.64837636,4197.7,4197.6,0.004]
[1758712882067,2.16103508,4197.7,4197.6,0.004]
[1758712882420,2.53466353,4197.7,4197.6,0.004]
[1758712883259,3.17434656,4197.7,4197.6,0.2316]
[1758712883560,0.73468517,4197.7,4197.6,0.5617]
[1758712883758,0.22202645,4197.7,4197.6,0.5617]
[1758712885325,0.22202645,4197.7,4197.6,0.2316]
[1758712885521,0.22202645,4197.7,4197.6,0.5617]
[1758712888737,0.22202645,4197.7,4197.6,0.2316]
[1758712889360,0.22202645,4197.7,4197.6,0.004]
[1758712889558,0.90462645,4197.7,4197.6,0.004]
[1758712890067,0.22202645,4197.7,4197.6,0.004]
[1758712891334,0.22273722,4197.7,4197.6,0.004]
[1758712893570,0.67173722,4197.7,4197.6,0.004]
[1758712893873,0.90533722,4197.7,4197.6,0.004]
[1758712894350,0.90453722,4197.7,4197.6,0.004]
[1758712895048,1.54422025,4197.7,4197.6,0.004]
[1758712895356,0.1184,4197.6,4197.2,0.004]
[1758712895543,0.1184,4197.3,4197.2,0.004]
[1758712895743,0.1184,4197.3,4197.2,0.2316]
[1758712896075,0.1184,4197.3,4197.2,0.004]
[1758712896253,0.5669,4197.3,4197.2,0.004]
[1758712897472,0.8005,4197.3,4197.2,0.004]
[1758712897647,1.48968418,4197.3,4197.2,0.004]
[1758712898078,2.0023429,4197.3,4197.2,0.004]
[1758712898241,2.64202593,4197.3,4197.2,0.004]
[1758712898664,2.0023429,4197.3,4197.1,0.024]
[1758712898875,1.83806356,4197.2,4197.1,0.024]
[1758712899070,2.33706457,4197.2,4197.1,0.024]
[1758712906485,2.56022229,4197.2,4197.1,0.024]
[1758712908765,2.51022229,4197.2,4197.1,0.024]
[1758712910195,2.51022229,4197.2,4196.7,0.004]
[1758712910489,0.86581602,4197.1,4196.7,0.004]
[1758712910686,0.22315772,4197.0,4196.7,0.004]
[1758712910889,0.22315772,4196.9,4196.7,0.004]
[1758712911051,1.3367583,4197.0,4196.7,0.004]
[1758712911052,0.22315772,4196.8,4196.7,0.004]
[1758712911252,0.91725772,4196.8,4196.7,0.004]
[1758712911447,1.01280167,4196.8,4196.7,0.004]
[1758712911753,1.11070167,4196.8,4196.7,0.004]
[1758712912579,1.80480167,4196.8,4196.7,0.004]
[1758712912775,5.43731184,4196.8,4196.7,0.004]
[1758712912976,5.94997056,4196.8,4196.7,0.004]
[1758712913202,3.9104,4196.7,4196.6,0.004]
[1758712913393,2.28874906,4196.7,4196.6,0.004]
[1758712913589,2.98284906,4196.7,4196.6,0.004]
[1758712914106,2.47019034,4196.7,4196.6,0.004]
[1758712914607,2.92657173,4196.7,4196.6,0.004]
[1758712915315,2.79669783,4196.7,4196.6,0.004]
[1758712915512,3.64960854,4196.7,4196.6,0.004]
[1758712915879,6.64960854,4196.7,4196.6,0.004]
[1758712916112,5.79669783,4196.7,4196.6,0.004]
[1758712917813,5.56129783,4196.7,4196.6,0.004]
[1758712917987,6.64960854,4196.7,4196.6,0.004]
[1758712919806,5.95550854,4196.7,4196.6,0.004]
[1758712920109,6.63240854,4196.7,4196.6,0.004]
[1758712920710,5.95550854,4196.7,4196.6,0.004]
[1758712921616,5.95470854,4196.7,4196.6,0.004]
[1758712921817,6.63160854,4196.7,4196.6,0.004]
[1758712922015,5.95470854,4196.7,4196.6,0.004]
[1758712922213,6.20160854,4196.7,4196.6,0.004]
[1758712922421,6.63160854,4196.7,4196.6,0.004]
[1758712923126,3.0,4196.6,4196.4,14.5]
[1758712923326,6.63160854,4196.7,4196.4,14.5]
[1758712923327,0.73581644,4196.5,4196.4,14.5]
[1758712923487,0.22315772,4196.5,4196.4,14.5]
[1758712923692,0.73581644,4196.5,4196.4,14.5]
[1758712923891,0.9398041,4196.5,4196.4,14.5]
[1758712924083,1.45246282,4196.5,4196.4,14.5]
[1758712924410,2.24446282,4196.5,4196.4,14.5]
[1758712924584,0.9398041,4196.5,4196.4,14.5]
[1758712924787,0.9398041,4196.5,4196.4,14.729]
[1758712924788,1.45246282,4196.5,4196.4,14.729]
[1758712924989,0.9398041,4196.5,4196.4,14.729]
[1758712925315,0.9398041,4196.5,4196.4,0.229]
[1758712925316,1.58227195,4196.5,4196.4,0.229]
[1758712925502,1.58227195,4196.5,4196.4,0.5591]
[1758712925814,0.9398041,4196.5,4196.4,0.5591]
[1758712926191,0.9398041,4196.5,4196.4,15.0591]
[1758712929011,0.22315772,4196.5,4196.4,15.0591]
[1758712929419,0.22315772,4196.5,4196.4,14.729]
[1758712929748,0.9397168,4196.5,4196.4,14.729]
[1758712929943,0.9397168,4196.5,4196.4,14.5]
[1758712930130,0.22315772,4196.5,4196.4,14.729]
[1758712930447,0.22315772,4196.5,4196.4,14.5]
[1758712930969,0.22315772,4196.5,4196.4,15.0591]
[1758712931142,0.22315772,4196.5,4196.4,14.729]
[1758712931314,0.22315772,4196.5,4196.4,14.5]
[1758712931515,0.22315772,4196.5,4196.4,14.7311]
[1758712931742,0.22315772,4196.5,4196.4,14.5]
[1758712933167,1.20531644,4196.5,4196.4,14.5]
[1758712933324,2.09768429,4196.5,4196.4,14.5]
[1758712933850,1.37828429,4196.5,4196.4,14.5]
[1758712934237,2.09492382,4196.5,4196.4,14.5]
[1758712935267,5.96385597,4196.5,4196.4,14.5]
[1758712935468,6.95737264,4196.5,4196.4,14.5]
[1758712937267,6.95737264,4196.5,4196.2,0.004]
[1758712937430,0.64327067,4196.3,4196.2,0.004]
[1758712937763,1.37908711,4196.3,4196.2,14.504]
[1758712937962,0.73581644,4196.3,4196.2,14.504]
[1758712938166,1.45521644,4196.3,4196.2,0.004]
[1758712938361,2.80933172,4196.3,4196.2,0.004]
[1758712938561,2.80933172,4196.3,4196.2,14.504]
[1758712939537,3.60133172,4196.3,4196.2,14.504]
[1758712940272,0.1184,4196.2,4196.1,0.024]
[1758712940460,1.57361644,4196.2,4196.1,0.024]
[1758712941169,3.05121159,4196.2,4196.1,0.024]
[1758712941467,3.05121159,4196.2,4196.1,14.524]
[1758712942379,1.64621644,4196.2,4196.1,14.524]
[1758712942572,1.64621644,4196.2,4196.1,14.7551]
[1758712942979,0.85421644,4196.2,4196.1,15.0852]
[1758712943368,0.85421644,4196.2,4196.1,14.7551]
[1758712944084,0.85421644,4196.2,4196.1,14.524]
[1758712944384,0.85421644,4196.2,4196.1,14.7551]
[1758712944583,0.85455747,4196.2,4196.1,14.7551]
[1758712946991,1.49821235,4196.2,4196.1,14.7551]
[1758712947980,1.49821235,4196.2,4196.1,14.524]
[1758712948580,1.49741235,4196.2,4196.1,14.524]
[1758712948783,1.49741235,4196.2,4196.1,14.7551]
[1758712948784,1.49740041,4196.2,4196.1,14.7551]
[1758712950091,1.49740041,4196.2,4196.1,15.0852]
[1758712950451,1.49740041,4196.2,4196.1,14.7551]
[1758712955260,0.85374553,4196.2,4196.1,14.524]
[1758712955484,0.85374553,4196.2,4196.1,15.0852]
[1758712956053,0.85374553,4196.2,4196.1,14.7551]
[1758712956256,0.73614553,4196.2,4196.1,15.0852]
[1758712956456,0.22348681,4196.2,4196.1,15.0852]
[1758712963600,0.22348681,4196.2,4196.1,15.2036]
[1758712965198,0.001,4196.5,4196.1,15.2036]
[1758712965407,0.22317177,4196.4,4196.2,0.2354]
[1758712965720,0.22317177,4196.3,4196.1,5.76826121]
[1758712965883,0.001,4196.5,4196.2,14.8301]
[1758712966085,0.001,4196.5,4196.4,5.62586121]
[1758712966285,0.22414675,4196.5,4196.4,5.62586121]
[1758712966520,0.22414675,4196.5,4196.4,5.86126121]
[1758712966722,0.22414675,4196.5,4196.4,20.36126121]
[1758712967522,0.22414675,4196.5,4196.4,20.69136121]
[1758712969332,0.22414675,4196.5,4196.4,14.5]
[1758712969485,0.22414675,4196.5,4196.4,20.12586121]
[1758712969824,0.22414675,4196.5,4196.4,5.86126121]